[Event "Titled Tuesday Blitz July 11 Early 2023"]
[White "Pein, Jonathan"]
[Black "Mishra, Manoj"]
[WhiteFideId "417092"]
[BlackFideId "5006007"]
[WhiteElo "2432"]
[BlackElo "2182"]
[Result "1/2-1/2"]
[Round "8"]
[TimeControl "180+2"]
[Date "2023.07.11"]
[WhiteClock "0:00:08"]
[BlackClock "0:00:08"]
[Board "152"]

1. e4 {[%clk 0:03:00]}  Nf6 {[%clk 0:02:58]} 2. e5 {[%clk 0:02:59]}  Nd5 {[%clk 0:02:57]} 3. d4 {[%clk 0:02:59]}  d6 {[%clk 0:02:58]} 4. c4 {[%clk 0:02:59]}  Nb6 {[%clk 0:02:57]} 5. f4 {[%clk 0:03:00]}  dxe5 {[%clk 0:02:57]} 6. fxe5 {[%clk 0:03:01]}  Nc6 {[%clk 0:02:57]} 7. Be3 {[%clk 0:03:00]}  Bf5 {[%clk 0:02:57]} 8. Nc3 {[%clk 0:02:58]}  e6 {[%clk 0:02:57]} 9. Nf3 {[%clk 0:02:57]}  Nb4 {[%clk 0:02:56]} 10. Rc1 {[%clk 0:02:55]}  c5 {[%clk 0:02:55]} 11. a3 {[%clk 0:02:40]}  cxd4 {[%clk 0:02:54]} 12. Nxd4 {[%clk 0:02:41]}  Nc6 {[%clk 0:02:53]} 13. Nxc6 {[%clk 0:02:41]}  bxc6 {[%clk 0:02:52]} 14. Be2 {[%clk 0:02:41]}  Be7 {[%clk 0:02:48]} 15. O-O {[%clk 0:02:40]}  O-O {[%clk 0:02:47]} 16. Qe1 {[%clk 0:02:40]}  Bg5 {[%clk 0:02:45]} 17. Qf2 {[%clk 0:02:27]}  Bxe3 {[%clk 0:02:40]} 18. Qxe3 {[%clk 0:02:28]}  Qh4 {[%clk 0:02:41]} 19. Rf4 {[%clk 0:01:59]}  Qe7 {[%clk 0:02:34]} 20. h4 {[%clk 0:01:51]}  Rad8 {[%clk 0:02:24]} 21. g4 {[%clk 0:01:46]}  Qxh4 {[%clk 0:01:59]} 22. gxf5 {[%clk 0:01:43]}  Qg5+ {[%clk 0:01:59]} 23. Kf1 {[%clk 0:01:43]}  exf5 {[%clk 0:01:58]} 24. Re1 {[%clk 0:01:29]}  Rfe8 {[%clk 0:01:53]} 25. Rf3 {[%clk 0:01:20]}  Qg4 {[%clk 0:01:35]} 26. Rf2 {[%clk 0:01:09]}  Nxc4 {[%clk 0:01:32]} 27. Bxg4 {[%clk 0:00:58]}  Nxe3+ {[%clk 0:01:31]} 28. Rxe3 {[%clk 0:00:59]}  fxg4 {[%clk 0:01:32]} 29. Re4 {[%clk 0:00:42]}  h5 {[%clk 0:01:30]} 30. Ne2 {[%clk 0:00:33]}  g5 {[%clk 0:01:14]} 31. Nd4 {[%clk 0:00:33]}  g3 {[%clk 0:01:08]} 32. Rf5 {[%clk 0:00:30]}  Kg7 {[%clk 0:01:01]} 33. Rxg5+ {[%clk 0:00:26]}  Kh6 {[%clk 0:01:01]} 34. Rxg3 {[%clk 0:00:26]}  Rg8 {[%clk 0:00:53]} 35. Rf3 {[%clk 0:00:27]}  Rd7 {[%clk 0:00:50]} 36. Nxc6 {[%clk 0:00:26]}  Rc8 {[%clk 0:00:48]} 37. Rf6+ {[%clk 0:00:22]}  Kg5 {[%clk 0:00:47]} 38. Ref4 {[%clk 0:00:21]}  h4 {[%clk 0:00:45]} 39. b4 {[%clk 0:00:19]}  Rxc6 {[%clk 0:00:40]} 40. Rxc6 {[%clk 0:00:07]}  Kxf4 {[%clk 0:00:39]} 41. Rh6 {[%clk 0:00:07]}  Kg3 {[%clk 0:00:39]} 42. e6 {[%clk 0:00:05]}  fxe6 {[%clk 0:00:37]} 43. Rxe6 {[%clk 0:00:06]}  Rf7+ {[%clk 0:00:35]} 44. Kg1 {[%clk 0:00:06]}  h3 {[%clk 0:00:26]} 45. Rg6+ {[%clk 0:00:06]}  Kf3 {[%clk 0:00:26]} 46. Kh2 {[%clk 0:00:06]}  Rh7 {[%clk 0:00:19]} 47. b5 {[%clk 0:00:05]}  Ke4 {[%clk 0:00:18]} 48. a4 {[%clk 0:00:04]}  Kd5 {[%clk 0:00:18]} 49. a5 {[%clk 0:00:03]}  Kc5 {[%clk 0:00:18]} 50. Rg5+ {[%clk 0:00:03]}  Kb4 {[%clk 0:00:18]} 51. b6 {[%clk 0:00:03]}  axb6 {[%clk 0:00:18]} 52. axb6 {[%clk 0:00:04]}  Kc4 {[%clk 0:00:15]} 53. Ra5 {[%clk 0:00:02]}  Rb7 {[%clk 0:00:13]} 54. Ra3 {[%clk 0:00:01]}  Rxb6 {[%clk 0:00:12]} 55. Rxh3 {[%clk 0:00:02]}  Rb2+ {[%clk 0:00:12]} 56. Kg3 {[%clk 0:00:03]}  Kd4 {[%clk 0:00:12]} 57. Kh4 {[%clk 0:00:04]}  Ke5 {[%clk 0:00:12]} 58. Rg3 {[%clk 0:00:05]}  Kf5 {[%clk 0:00:12]} 59. Rf3+ {[%clk 0:00:05]}  Ke5 {[%clk 0:00:12]} 60. Rg3 {[%clk 0:00:06]}  Rb4+ {[%clk 0:00:12]} 61. Kh3 {[%clk 0:00:06]}  Kf5 {[%clk 0:00:10]} 62. Kg2 {[%clk 0:00:07]}  Rb2+ {[%clk 0:00:09]} 63. Kf3 {[%clk 0:00:07]}  Rb3+ {[%clk 0:00:09]} 64. Kf2 {[%clk 0:00:08]}  Rxg3 {[%clk 0:00:08]} 65. Kxg3 {[%clk 0:00:08]} 1/2-1/2


[Site "https://www.chess.com"]

[Event "Titled Tuesday Blitz July 11 Early 2023"]
[White "Baruch, Liam"]
[Black "Mazurkiewicz, Michal"]
[WhiteFideId "14322064"]
[BlackFideId "1124943"]
[WhiteElo "2170"]
[BlackElo "2405"]
[Result "0-1"]
[Round "8"]
[TimeControl "180+2"]
[Date "2023.07.11"]
[WhiteClock "0:00:17"]
[BlackClock "0:01:48"]
[Board "153"]

1. e4 {[%clk 0:03:00]}  d6 {[%clk 0:03:00]} 2. d4 {[%clk 0:03:00]}  Nf6 {[%clk 0:03:00]} 3. Nc3 {[%clk 0:03:01]}  c6 {[%clk 0:03:00]} 4. Be3 {[%clk 0:03:00]}  e5 {[%clk 0:02:58]} 5. Qd2 {[%clk 0:02:52]}  Ng4 {[%clk 0:02:58]} 6. Bg5 {[%clk 0:02:52]}  Qb6 {[%clk 0:02:35]} 7. f3 {[%clk 0:02:35]}  Nf6 {[%clk 0:02:18]} 8. dxe5 {[%clk 0:02:32]}  dxe5 {[%clk 0:02:17]} 9. O-O-O {[%clk 0:02:32]}  Bb4 {[%clk 0:02:15]} 10. a3 {[%clk 0:02:27]}  Be7 {[%clk 0:02:12]} 11. h4 {[%clk 0:02:17]}  Be6 {[%clk 0:02:12]} 12. h5 {[%clk 0:02:09]}  h6 {[%clk 0:02:11]} 13. Be3 {[%clk 0:02:08]}  Qa5 {[%clk 0:02:10]} 14. Nb1 {[%clk 0:02:04]}  Qc7 {[%clk 0:02:09]} 15. g4 {[%clk 0:02:00]}  Nbd7 {[%clk 0:02:08]} 16. Qc3 {[%clk 0:01:47]}  Nh7 {[%clk 0:02:03]} 17. f4 {[%clk 0:01:39]}  exf4 {[%clk 0:01:59]} 18. Bd4 {[%clk 0:01:37]}  f6 {[%clk 0:01:57]} 19. Be2 {[%clk 0:01:11]}  Ng5 {[%clk 0:01:57]} 20. Bf3 {[%clk 0:01:07]}  Ne5 {[%clk 0:01:56]} 21. Bxe5 {[%clk 0:01:05]}  Qxe5 {[%clk 0:01:55]} 22. Qxe5 {[%clk 0:00:45]}  fxe5 {[%clk 0:01:56]} 23. Nd2 {[%clk 0:00:42]}  Bc5 {[%clk 0:01:55]} 24. Kb1 {[%clk 0:00:32]}  Rd8 {[%clk 0:01:54]} 25. Nh3 {[%clk 0:00:29]}  Nxf3 {[%clk 0:01:52]} 26. Nxf3 {[%clk 0:00:28]}  Rxd1+ {[%clk 0:01:52]} 27. Rxd1 {[%clk 0:00:28]}  Bxg4 {[%clk 0:01:53]} 28. b4 {[%clk 0:00:21]}  Bxf3 {[%clk 0:01:50]} 29. Rf1 {[%clk 0:00:18]}  Bg2 {[%clk 0:01:50]} 30. Rg1 {[%clk 0:00:17]}  Bxg1 {[%clk 0:01:49]} 31. Nxg1 {[%clk 0:00:17]}  Bxe4 {[%clk 0:01:48]} 0-1


[Site "https://www.chess.com"]

[Event "Titled Tuesday Blitz July 11 Early 2023"]
[White "Rian, Kapriaga"]
[Black "Lisjak, Zlatko"]
[WhiteFideId "7103263"]
[BlackFideId "14502186"]
[WhiteElo "2376"]
[BlackElo "2167"]
[Result "1-0"]
[Round "8"]
[TimeControl "180+2"]
[Date "2023.07.11"]
[WhiteClock "0:00:39"]
[BlackClock "0:00:00"]
[Board "154"]

1. d4 {[%clk 0:02:33]}  d6 {[%clk 0:02:59]} 2. Nf3 {[%clk 0:02:34]}  Bg4 {[%clk 0:02:57]} 3. e3 {[%clk 0:02:34]}  Nd7 {[%clk 0:02:56]} 4. Be2 {[%clk 0:02:34]}  e5 {[%clk 0:02:56]} 5. O-O {[%clk 0:02:35]}  f5 {[%clk 0:02:53]} 6. b3 {[%clk 0:02:34]}  g6 {[%clk 0:02:39]} 7. Bb2 {[%clk 0:02:33]}  Bg7 {[%clk 0:02:40]} 8. dxe5 {[%clk 0:02:32]}  dxe5 {[%clk 0:02:39]} 9. Nbd2 {[%clk 0:02:32]}  Ne7 {[%clk 0:02:37]} 10. Nc4 {[%clk 0:02:31]}  Bxf3 {[%clk 0:02:33]} 11. Bxf3 {[%clk 0:02:31]}  O-O {[%clk 0:02:32]} 12. Bxb7 {[%clk 0:02:30]}  Rb8 {[%clk 0:02:26]} 13. Bd5+ {[%clk 0:02:30]}  Kh8 {[%clk 0:02:23]} 14. Be6 {[%clk 0:02:30]}  Nc5 {[%clk 0:02:14]} 15. Qxd8 {[%clk 0:02:11]}  Rfxd8 {[%clk 0:02:04]} 16. Ba3 {[%clk 0:02:11]}  Nxe6 {[%clk 0:01:58]} 17. Bxe7 {[%clk 0:02:10]}  Rd7 {[%clk 0:01:56]} 18. Ba3 {[%clk 0:02:10]}  Rbd8 {[%clk 0:01:56]} 19. g3 {[%clk 0:02:08]}  e4 {[%clk 0:01:54]} 20. Rab1 {[%clk 0:02:06]}  Ng5 {[%clk 0:01:52]} 21. Kg2 {[%clk 0:02:04]}  Nf3 {[%clk 0:01:50]} 22. Bc5 {[%clk 0:01:58]}  h5 {[%clk 0:01:45]} 23. Bxa7 {[%clk 0:01:56]}  Ra8 {[%clk 0:01:37]} 24. Bc5 {[%clk 0:01:47]}  Rxa2 {[%clk 0:01:37]} 25. Rfc1 {[%clk 0:01:44]}  Bc3 {[%clk 0:01:29]} 26. h4 {[%clk 0:01:43]}  Kg7 {[%clk 0:01:25]} 27. Ba3 {[%clk 0:01:35]}  Nd2 {[%clk 0:01:22]} 28. Rd1 {[%clk 0:01:25]}  Kf6 {[%clk 0:01:10]} 29. Rbc1 {[%clk 0:01:16]}  Rd5 {[%clk 0:00:56]} 30. Nxd2 {[%clk 0:01:15]}  Bxd2 {[%clk 0:00:55]} 31. Bb4 {[%clk 0:01:14]}  Bxc1 {[%clk 0:00:52]} 32. Rxd5 {[%clk 0:01:12]}  Rxc2 {[%clk 0:00:51]} 33. Bc5 {[%clk 0:01:08]}  c6 {[%clk 0:00:49]} 34. Rd6+ {[%clk 0:01:08]}  Kf7 {[%clk 0:00:39]} 35. b4 {[%clk 0:01:07]}  Bd2 {[%clk 0:00:34]} 36. Kf1 {[%clk 0:01:05]}  Ra2 {[%clk 0:00:30]} 37. Rxc6 {[%clk 0:01:03]}  Ra1+ {[%clk 0:00:28]} 38. Ke2 {[%clk 0:01:02]}  Bc3 {[%clk 0:00:27]} 39. Rc7+ {[%clk 0:00:59]}  Ke8 {[%clk 0:00:22]} 40. f4 {[%clk 0:00:57]}  Ra2+ {[%clk 0:00:19]} 41. Kf1 {[%clk 0:00:57]}  Rh2 {[%clk 0:00:16]} 42. Kg1 {[%clk 0:00:56]}  Rb2 {[%clk 0:00:13]} 43. Rc6 {[%clk 0:00:53]}  Kf7 {[%clk 0:00:12]} 44. Rb6 {[%clk 0:00:51]}  Rb1+ {[%clk 0:00:09]} 45. Kg2 {[%clk 0:00:51]}  Rb2+ {[%clk 0:00:09]} 46. Kh3 {[%clk 0:00:51]}  Be1 {[%clk 0:00:08]} 47. Bd4 {[%clk 0:00:44]}  Re2 {[%clk 0:00:06]} 48. Rf6+ {[%clk 0:00:42]}  Ke7 {[%clk 0:00:05]} 49. Rxg6 {[%clk 0:00:40]}  Bxb4 {[%clk 0:00:03]} 50. Rg5 {[%clk 0:00:39]}  Be1 {[%clk 0:00:00]} 51. Rxh5 {[%clk 0:00:39]} 1-0


[Site "https://www.chess.com"]

[Event "Titled Tuesday Blitz July 11 Early 2023"]
[White "Bashirli, Saadat"]
[Black "Vila Dupla, Aurelio"]
[WhiteFideId "13429990"]
[BlackFideId "2203383"]
[WhiteElo "2344"]
[BlackElo "2146"]
[Result "1-0"]
[Round "8"]
[TimeControl "180+2"]
[Date "2023.07.11"]
[WhiteClock "0:01:10"]
[BlackClock "0:00:15"]
[Board "156"]

1. e4 {[%clk 0:03:00]}  c5 {[%clk 0:02:59]} 2. Nf3 {[%clk 0:02:58]}  d6 {[%clk 0:02:59]} 3. c3 {[%clk 0:02:57]}  Nf6 {[%clk 0:02:57]} 4. Bd3 {[%clk 0:02:57]}  Bg4 {[%clk 0:02:56]} 5. Bc2 {[%clk 0:02:55]}  e6 {[%clk 0:02:55]} 6. d4 {[%clk 0:02:52]}  cxd4 {[%clk 0:02:53]} 7. cxd4 {[%clk 0:02:53]}  Be7 {[%clk 0:02:51]} 8. O-O {[%clk 0:02:53]}  O-O {[%clk 0:02:50]} 9. Nc3 {[%clk 0:02:52]}  d5 {[%clk 0:02:49]} 10. e5 {[%clk 0:02:52]}  Nfd7 {[%clk 0:02:35]} 11. h3 {[%clk 0:02:51]}  Bh5 {[%clk 0:02:07]} 12. Be3 {[%clk 0:02:48]}  Bg6 {[%clk 0:02:04]} 13. Bxg6 {[%clk 0:02:45]}  fxg6 {[%clk 0:02:04]} 14. Rc1 {[%clk 0:02:42]}  Nc6 {[%clk 0:02:04]} 15. Qe2 {[%clk 0:02:37]}  Rf5 {[%clk 0:01:59]} 16. Rfd1 {[%clk 0:02:31]}  Qf8 {[%clk 0:01:59]} 17. a3 {[%clk 0:02:27]}  Qf7 {[%clk 0:01:55]} 18. b4 {[%clk 0:02:26]}  Rf8 {[%clk 0:01:51]} 19. Nb5 {[%clk 0:02:18]}  Nb6 {[%clk 0:01:46]} 20. Nd6 {[%clk 0:02:15]}  Bxd6 {[%clk 0:01:43]} 21. exd6 {[%clk 0:02:16]}  Nc4 {[%clk 0:01:41]} 22. b5 {[%clk 0:01:58]}  N6a5 {[%clk 0:01:24]} 23. Rc3 {[%clk 0:01:41]}  Qd7 {[%clk 0:01:14]} 24. a4 {[%clk 0:01:32]}  Qxd6 {[%clk 0:01:12]} 25. Bc1 {[%clk 0:01:29]}  e5 {[%clk 0:01:04]} 26. dxe5 {[%clk 0:01:27]}  Nxe5 {[%clk 0:01:04]} 27. Ba3 {[%clk 0:01:17]}  Nxf3+ {[%clk 0:00:55]} 28. Rxf3 {[%clk 0:01:16]}  Qf6 {[%clk 0:00:20]} 29. Bxf8 {[%clk 0:01:13]}  Qxf8 {[%clk 0:00:20]} 30. Qe6+ {[%clk 0:01:11]}  Kh8 {[%clk 0:00:19]} 31. Rxf5 {[%clk 0:01:10]}  gxf5 {[%clk 0:00:15]} 32. Qxd5 {[%clk 0:01:10]} 1-0


[Site "https://www.chess.com"]

[Event "Titled Tuesday Blitz July 11 Early 2023"]
[White "Fernandez, Michael"]
[Black "Horokoskii"]
[WhiteFideId "5803560"]
[WhiteElo "2341"]
[BlackElo "2140"]
[Result "1-0"]
[Round "8"]
[TimeControl "180+2"]
[Date "2023.07.11"]
[WhiteClock "0:01:33"]
[BlackClock "0:00:27"]
[Board "157"]

1. c4 {[%clk 0:02:54]}  Nf6 {[%clk 0:02:56]} 2. g3 {[%clk 0:02:55]}  g6 {[%clk 0:02:56]} 3. Bg2 {[%clk 0:02:54]}  Bg7 {[%clk 0:02:56]} 4. Nc3 {[%clk 0:02:55]}  d6 {[%clk 0:02:46]} 5. e4 {[%clk 0:02:55]}  O-O {[%clk 0:02:46]} 6. Nge2 {[%clk 0:02:55]}  Nbd7 {[%clk 0:02:26]} 7. O-O {[%clk 0:02:53]}  c6 {[%clk 0:02:27]} 8. d4 {[%clk 0:02:35]}  e5 {[%clk 0:02:25]} 9. d5 {[%clk 0:02:33]}  c5 {[%clk 0:02:25]} 10. b3 {[%clk 0:02:30]}  Ne8 {[%clk 0:02:24]} 11. h3 {[%clk 0:02:29]}  a6 {[%clk 0:02:14]} 12. Be3 {[%clk 0:02:29]}  f5 {[%clk 0:02:12]} 13. Qd2 {[%clk 0:02:29]}  Nef6 {[%clk 0:02:08]} 14. f4 {[%clk 0:02:29]}  fxe4 {[%clk 0:02:05]} 15. Nxe4 {[%clk 0:02:24]}  Nxe4 {[%clk 0:02:00]} 16. Bxe4 {[%clk 0:02:24]}  exf4 {[%clk 0:02:00]} 17. Bxf4 {[%clk 0:02:22]}  Be5 {[%clk 0:01:27]} 18. Bh6 {[%clk 0:02:16]}  Bg7 {[%clk 0:01:27]} 19. Rxf8+ {[%clk 0:01:59]}  Qxf8 {[%clk 0:01:26]} 20. Rf1 {[%clk 0:01:56]}  Qe8 {[%clk 0:01:25]} 21. Bxg7 {[%clk 0:01:40]}  Kxg7 {[%clk 0:01:23]} 22. Nf4 {[%clk 0:01:36]}  Qxe4 {[%clk 0:00:48]} 23. Ne6+ {[%clk 0:01:36]}  Kg8 {[%clk 0:00:27]} 24. Qh6 {[%clk 0:01:33]} 1-0


[Site "https://www.chess.com"]

[Event "Titled Tuesday Blitz July 11 Early 2023"]
[White "Calhoun, Luke"]
[Black "Fajdetic, Hrvoje"]
[WhiteFideId "2064421"]
[BlackFideId "14501945"]
[WhiteElo "2125"]
[BlackElo "2323"]
[Result "0-1"]
[Round "8"]
[TimeControl "180+2"]
[Date "2023.07.11"]
[WhiteClock "0:00:00"]
[BlackClock "0:00:01"]
[Board "159"]

1. d4 {[%clk 0:03:00]}  d5 {[%clk 0:02:42]} 2. c4 {[%clk 0:03:00]}  e6 {[%clk 0:02:42]} 3. Nf3 {[%clk 0:02:58]}  f5 {[%clk 0:02:42]} 4. e3 {[%clk 0:02:55]}  Nf6 {[%clk 0:02:41]} 5. Nbd2 {[%clk 0:02:55]}  c6 {[%clk 0:02:40]} 6. Ne5 {[%clk 0:02:55]}  Bd6 {[%clk 0:02:40]} 7. Ndf3 {[%clk 0:02:55]}  O-O {[%clk 0:02:40]} 8. Be2 {[%clk 0:02:54]}  b6 {[%clk 0:02:40]} 9. O-O {[%clk 0:02:54]}  Bb7 {[%clk 0:02:40]} 10. b3 {[%clk 0:02:51]}  Nbd7 {[%clk 0:02:40]} 11. Nd3 {[%clk 0:02:50]}  Ne4 {[%clk 0:02:38]} 12. Bb2 {[%clk 0:02:48]}  Rc8 {[%clk 0:02:29]} 13. a4 {[%clk 0:02:43]}  a5 {[%clk 0:02:27]} 14. Rc1 {[%clk 0:02:33]}  c5 {[%clk 0:02:22]} 15. Nfe5 {[%clk 0:02:27]}  Nxe5 {[%clk 0:02:04]} 16. dxe5 {[%clk 0:02:18]}  Be7 {[%clk 0:01:25]} 17. Nf4 {[%clk 0:02:14]}  Qd7 {[%clk 0:01:05]} 18. cxd5 {[%clk 0:02:08]}  exd5 {[%clk 0:01:04]} 19. Bb5 {[%clk 0:01:56]}  Bc6 {[%clk 0:00:39]} 20. Bxc6 {[%clk 0:01:50]}  Rxc6 {[%clk 0:00:35]} 21. Qxd5+ {[%clk 0:01:50]}  Qxd5 {[%clk 0:00:34]} 22. Nxd5 {[%clk 0:01:50]}  Bg5 {[%clk 0:00:27]} 23. Rfd1 {[%clk 0:01:35]}  Rb8 {[%clk 0:00:25]} 24. f3 {[%clk 0:01:30]}  Rd8 {[%clk 0:00:18]} 25. fxe4 {[%clk 0:01:28]}  fxe4 {[%clk 0:00:16]} 26. g3 {[%clk 0:01:15]}  h5 {[%clk 0:00:10]} 27. h4 {[%clk 0:01:14]}  Rxd5 {[%clk 0:00:07]} 28. Rxd5 {[%clk 0:01:12]}  Bxe3+ {[%clk 0:00:08]} 29. Kg2 {[%clk 0:01:11]}  Bxc1 {[%clk 0:00:09]} 30. Bxc1 {[%clk 0:01:11]}  c4 {[%clk 0:00:09]} 31. bxc4 {[%clk 0:01:07]}  Rxc4 {[%clk 0:00:10]} 32. Be3 {[%clk 0:01:07]}  Rxa4 {[%clk 0:00:09]} 33. Bxb6 {[%clk 0:01:07]}  Ra2+ {[%clk 0:00:09]} 34. Kf1 {[%clk 0:01:03]}  a4 {[%clk 0:00:10]} 35. Rd4 {[%clk 0:01:00]}  e3 {[%clk 0:00:09]} 36. Re4 {[%clk 0:01:00]}  Kf7 {[%clk 0:00:07]} 37. Rxe3 {[%clk 0:01:00]}  Ke6 {[%clk 0:00:08]} 38. Bc7 {[%clk 0:01:00]}  Ra1+ {[%clk 0:00:06]} 39. Kf2 {[%clk 0:01:00]}  a3 {[%clk 0:00:07]} 40. Bd6 {[%clk 0:00:58]}  a2 {[%clk 0:00:07]} 41. Ra3 {[%clk 0:00:58]}  g6 {[%clk 0:00:05]} 42. Ra8 {[%clk 0:00:56]}  Kd5 {[%clk 0:00:04]} 43. Bc7 {[%clk 0:00:55]}  Ke6 {[%clk 0:00:04]} 44. Kg2 {[%clk 0:00:46]}  Rc1 {[%clk 0:00:03]} 45. Rxa2 {[%clk 0:00:22]}  Rxc7 {[%clk 0:00:03]} 46. Ra6+ {[%clk 0:00:22]}  Kxe5 {[%clk 0:00:02]} 47. Rxg6 {[%clk 0:00:22]}  Rh7 {[%clk 0:00:02]} 48. Kf3 {[%clk 0:00:20]}  Kf5 {[%clk 0:00:02]} 49. Ra6 {[%clk 0:00:19]}  Rc7 {[%clk 0:00:01]} 50. Ra5+ {[%clk 0:00:20]}  Kg6 {[%clk 0:00:01]} 51. Rg5+ {[%clk 0:00:20]}  Kh6 {[%clk 0:00:02]} 52. Re5 {[%clk 0:00:15]}  Rc3+ {[%clk 0:00:03]} 53. Kf4 {[%clk 0:00:15]}  Rc4+ {[%clk 0:00:03]} 54. Re4 {[%clk 0:00:14]}  Rc1 {[%clk 0:00:04]} 55. Kf5 {[%clk 0:00:13]}  Rf1+ {[%clk 0:00:04]} 56. Rf4 {[%clk 0:00:14]}  Rg1 {[%clk 0:00:03]} 57. Rf3 {[%clk 0:00:14]}  Re1 {[%clk 0:00:03]} 58. Kf6 {[%clk 0:00:15]}  Rc1 {[%clk 0:00:03]} 59. Re3 {[%clk 0:00:15]}  Rc6+ {[%clk 0:00:04]} 60. Re6 {[%clk 0:00:15]}  Rc5 {[%clk 0:00:03]} 61. Kf7+ {[%clk 0:00:15]}  Kh7 {[%clk 0:00:04]} 62. Rf6 {[%clk 0:00:13]}  Re5 {[%clk 0:00:04]} 63. Rf4 {[%clk 0:00:12]}  Rd5 {[%clk 0:00:03]} 64. Kf6 {[%clk 0:00:12]}  Kh6 {[%clk 0:00:03]} 65. Re4 {[%clk 0:00:11]}  Rd3 {[%clk 0:00:02]} 66. Re8 {[%clk 0:00:07]}  Kh7 {[%clk 0:00:01]} 67. Re7+ {[%clk 0:00:00]}  Kh6 {[%clk 0:00:01]} 0-1


[Site "https://www.chess.com"]

[Event "Titled Tuesday Blitz July 11 Early 2023"]
[White "Vifleemskaia, Svetlana"]
[Black "campochess"]
[WhiteFideId "4129490"]
[WhiteElo "2307"]
[BlackElo "2124"]
[Result "1-0"]
[Round "8"]
[TimeControl "180+2"]
[Date "2023.07.11"]
[WhiteClock "0:00:34"]
[BlackClock "0:00:15"]
[Board "160"]

1. d4 {[%clk 0:02:42]}  Nf6 {[%clk 0:02:58]} 2. c4 {[%clk 0:02:41]}  c5 {[%clk 0:02:58]} 3. d5 {[%clk 0:02:40]}  b5 {[%clk 0:02:59]} 4. Nd2 {[%clk 0:02:39]}  d6 {[%clk 0:02:56]} 5. e4 {[%clk 0:02:39]}  bxc4 {[%clk 0:02:55]} 6. Bxc4 {[%clk 0:02:37]}  g6 {[%clk 0:02:54]} 7. b3 {[%clk 0:02:37]}  Bg7 {[%clk 0:02:54]} 8. Bb2 {[%clk 0:02:38]}  O-O {[%clk 0:02:53]} 9. Qc2 {[%clk 0:02:38]}  Ba6 {[%clk 0:02:53]} 10. Ngf3 {[%clk 0:02:38]}  Bxc4 {[%clk 0:02:52]} 11. bxc4 {[%clk 0:02:38]}  Nbd7 {[%clk 0:02:51]} 12. O-O {[%clk 0:02:39]}  Rb8 {[%clk 0:02:51]} 13. Bc3 {[%clk 0:02:39]}  Nh5 {[%clk 0:02:48]} 14. Rab1 {[%clk 0:02:32]}  Qc7 {[%clk 0:02:42]} 15. Bxg7 {[%clk 0:02:31]}  Kxg7 {[%clk 0:02:38]} 16. Qc3+ {[%clk 0:02:31]}  Kg8 {[%clk 0:02:37]} 17. Rb5 {[%clk 0:02:30]}  Nf4 {[%clk 0:02:35]} 18. Re1 {[%clk 0:02:28]}  a6 {[%clk 0:02:35]} 19. Rb3 {[%clk 0:02:27]}  Rxb3 {[%clk 0:02:19]} 20. axb3 {[%clk 0:02:26]}  e6 {[%clk 0:02:13]} 21. g3 {[%clk 0:02:26]}  Nh5 {[%clk 0:02:13]} 22. Ra1 {[%clk 0:02:21]}  f5 {[%clk 0:01:59]} 23. Ng5 {[%clk 0:02:14]}  Ng7 {[%clk 0:01:46]} 24. Rxa6 {[%clk 0:02:04]}  exd5 {[%clk 0:01:44]} 25. exd5 {[%clk 0:01:59]}  Ne5 {[%clk 0:01:41]} 26. f4 {[%clk 0:01:54]}  Ng4 {[%clk 0:01:36]} 27. h3 {[%clk 0:01:52]}  Nf6 {[%clk 0:01:30]} 28. Ne6 {[%clk 0:01:33]}  Nxe6 {[%clk 0:01:28]} 29. dxe6 {[%clk 0:01:34]}  d5 {[%clk 0:01:28]} 30. Qe5 {[%clk 0:01:27]}  Qb7 {[%clk 0:01:13]} 31. e7 {[%clk 0:01:15]}  Re8 {[%clk 0:01:04]} 32. Rxf6 {[%clk 0:01:13]}  dxc4 {[%clk 0:01:02]} 33. Qe6+ {[%clk 0:01:08]}  Kg7 {[%clk 0:00:59]} 34. Rf8 {[%clk 0:01:09]}  Kh6 {[%clk 0:00:59]} 35. Rxe8 {[%clk 0:01:02]}  Qa7 {[%clk 0:00:48]} 36. Qe3 {[%clk 0:00:52]}  Qa1+ {[%clk 0:00:44]} 37. Kg2 {[%clk 0:00:50]}  c3 {[%clk 0:00:44]} 38. Rc8 {[%clk 0:00:46]}  Qb2 {[%clk 0:00:20]} 39. e8=Q {[%clk 0:00:34]}  cxd2 {[%clk 0:00:20]} 40. Qf8+ {[%clk 0:00:34]}  Kh5 {[%clk 0:00:18]} 41. g4+ {[%clk 0:00:34]}  fxg4 {[%clk 0:00:16]} 42. hxg4+ {[%clk 0:00:34]}  Kxg4 {[%clk 0:00:15]} 43. Qh3# {[%clk 0:00:34]} 1-0


[Site "https://www.chess.com"]